fUSD/lending_fUSD_20240717
["ID","MTS","AMOUNT","RATE_DAILY","PERIOD"]
[332476081,1721225439148,-500.0,0.00018972,2]
[332476082,1721225439159,-150.0,0.00018986,2]
[332476083,1721225439168,-216.45576739,0.0001899,2]
[332476084,1721225439178,-569.43169302,0.00018997,2]
[332476085,1721225439187,-1993.01092557,0.00018997,2]
[332476086,1721225439197,-517.91842238,0.00018999,2]
[332476087,1721225439207,-500.0,0.00018999,2]
[332476088,1721225439216,-202.77231055,0.00018999,2]
[332476089,1721225439226,-155.0,0.00018999,2]
[332476090,1721225439238,-158.93654451,0.00018999,2]
[332476091,1721225439247,-176.64489343,0.00018999,2]
[332476092,1721225439257,-500.0,0.00018999,2]
[332476093,1721225439267,-175.17711143,0.00018999,2]
[332476094,1721225439276,-411.39253024,0.00018999,2]
[332476095,1721225439285,-500.0,0.00018999,2]
[332476097,1721225439295,-500.0,0.00018999,2]
[332476099,1721225439304,-500.0,0.00018999,2]
[332476100,1721225439314,-188.92918688,0.00018999,2]
[332476102,1721225439324,-500.0,0.00018999,2]
[332476104,1721225439333,-500.0,0.00018999,2]
[332476105,1721225439343,-500.0,0.00018999,2]
[332476106,1721225439353,-155.3283253,0.00018999,2]
[332476107,1721225439362,-378.79760517,0.00018999,2]
[332476108,1721225439371,-500.0,0.00018999,2]
[332476109,1721225439381,-500.0,0.00018999,2]
[332476110,1721225439390,-500.0,0.00018999,2]
[332476111,1721225439399,-500.0,0.00018999,2]
[332476112,1721225439409,-500.0,0.00018999,2]
[332476113,1721225439418,-500.0,0.00018999,2]
[332476114,1721225439427,-500.0,0.00018999,2]
[332476115,1721225439437,-500.0,0.00018999,2]
[332476116,1721225439446,-500.0,0.00018999,2]
[332476117,1721225439455,-500.0,0.00018999,2]
[332476118,1721225439465,-500.0,0.00018999,2]
[332476119,1721225439474,-500.0,0.00018999,2]
[332476120,1721225439484,-500.0,0.00018999,2]
[332476121,1721225439494,-500.0,0.00018999,2]
[332476122,1721225439503,-500.0,0.00018999,2]
[332476123,1721225439513,-385.95403643,0.00018999,2]
[332476124,1721225439522,-500.0,0.00018999,2]
[332476125,1721225439532,-500.0,0.00018999,2]
[332476126,1721225439541,-500.0,0.00018999,2]
[332476127,1721225439551,-500.0,0.00018999,2]
[332476128,1721225439560,-500.0,0.00018999,2]
[332476129,1721225439571,-150966.74222868,0.00019,7]
[332476130,1721225439584,-117840.45797075,0.00019,7]
[332476131,1721225439595,-1000.88832,0.00019,7]
[332476132,1721225439608,-15988.47165043,0.00019,7]
[332476133,1721225439619,-1374.7667779,0.00019,7]
[332476134,1721225439631,-771.07115909,0.00019,7]
[332476135,1721225439643,-175517.14077536,0.00019,7]
[332476136,1721225439654,-184135.60358764,0.00019,7]
[332476143,1721225440407,-5045.4,0.00019,7]
[332476144,1721225440419,-727.40483639,0.00019,7]
[332476145,1721225440430,-643.23488832,0.00019,7]
[332476146,1721225440441,-360.29,0.00019,7]
[332476147,1721225440453,-4120.71235,0.00019,7]
[332476148,1721225440464,-149289.30823738,0.00019,7]
[332476149,1721225440474,-90733.2182192,0.00019,2]
[332476150,1721225440506,-390.912,0.00019,2]
[332476239,1721225443416,-5900.2399086,0.00019,2]
[332476240,1721225443427,-5579.18028061,0.00019,2]
[332476241,1721225443438,-79441.5878515,0.00019,2]
[332476242,1721225443526,-3262.44251899,0.00019,2]
[332476243,1721225443538,-12973.483531,0.00019,2]
[332476244,1721225443583,-3158.60889169,0.00019,2]
[332476245,1721225443594,-1545.27170336,0.00019,2]
[332476248,1721225443605,-701656.4713452,0.00019,2]
[332476250,1721225443618,-579.35,0.00019,2]
[332476255,1721225443712,-365812.08026702,0.00019,2]
[332476256,1721225443724,-301.88012184,0.00019,2]
[332476300,1721225446314,-227.39291056,0.00013128,2]
[332476301,1721225446325,-1120.84916836,0.00018899,2]
[332476304,1721225446973,-4518.49694369,0.00018899,2]
[332476305,1721225446984,-7596.87166484,0.00019,2]
[332476306,1721225446995,-2800.21661438,0.00019,2]
[332476307,1721225447007,-644.05,0.00019,2]
[332476308,1721225447019,-11182.99173202,0.00019,2]
[332476309,1721225447030,-856.94568991,0.00019,2]
[332476310,1721225447041,-508.5,0.00019,2]
[332476311,1721225447052,-12337.54417585,0.00019,2]
[332476312,1721225447063,-1246.58900404,0.00019,2]
[332476313,1721225447079,-1300.40774962,0.00019,2]
[332476314,1721225447094,-261.8274147,0.00019,2]
[332476315,1721225447105,-3812.8620695,0.00019,2]
[332476316,1721225447116,-2609.99752265,0.00019,2]
[332476331,1721225603547,3114.89905191,0.00011199,2]
[332476335,1721225632682,6321.843581,0.00011199,2]
[332476337,1721225667300,796.63488233,0.00011199,2]
[332476338,1721225669082,845.00519519,0.00011199,2]
[332476339,1721225672140,236.54372154,0.00011199,2]
[332476342,1721225695148,1965.18891656,0.00011199,2]
[332476346,1721225738488,5032.19591116,0.00011199,2]
[332476362,1721225950850,1200.0,0.00011199,2]
[332476369,1721226169223,433.27749902,0.00011199,2]
[332476371,1721226186447,1266.3458359,0.00011199,2]
[332476373,1721226223984,202.52407961,0.00011199,2]
[332476377,1721226261794,425.94,0.00010063,2]
[332476379,1721226330161,174.15,9.585e-05,2]
[332476389,1721226372157,9253.93039974,0.00011199,2]
[332476391,1721226384451,385.73164076,0.00011199,2]
[332476394,1721226390854,159.887584,0.00011199,2]
[332476395,1721226392755,296.78659241,0.00011199,2]
[332476396,1721226399004,5392.40963011,0.00011199,2]
[332476397,1721226399798,275.56259237,0.00011199,2]
[332476398,1721226403707,3077.57558188,0.00011199,2]
[332476399,1721226405593,199.82480377,0.00011199,2]
[332476401,1721226420388,475.86340082,0.00011199,2]
[332476402,1721226421697,292.26263749,0.00011199,2]
[332476404,1721226429093,202.52407961,0.00011199,2]
[332476406,1721226441161,2204.54280756,0.00011199,2]
[332476408,1721226453812,162.22662195,0.00011199,2]
[332476416,1721226465785,627.90389223,0.00011199,2]
[332476443,1721226516544,236005.73937395,0.00011199,2]
[332476463,1721226598071,271.68,0.00010959,2]
[332476464,1721226603259,34496.2433597,0.00011199,2]
[332476466,1721226606613,3114.89905191,0.00011199,2]
[332476467,1721226608098,235918.48420681,0.00011199,2]
[332476471,1721226629176,9250.36772578,0.00011199,2]
[332476481,1721226631582,-976.69261047,0.00011881,2]
[332476482,1721226631593,-635.97483763,0.00011881,2]
[332476483,1721226631604,-531.17276182,0.00011881,2]
[332476484,1721226631615,-2589.55202888,0.00011881,2]
[332476485,1721226631628,-162.42,0.00011981,2]
[332476486,1721226631637,-169.01,0.00011981,2]
[332476487,1721226631646,-164.69,0.00011981,2]
[332476488,1721226631655,-3556.67,0.00011981,2]
[332476489,1721226631664,-155.0,0.00012273,2]
[332476490,1721226631673,-425.94,0.00012327,2]
[332476491,1721226631683,-550.0,0.00013,2]
[332476492,1721226631692,-3518.90972402,0.00013,2]
[332476493,1721226631702,-766.87199241,0.0001305,2]
[332476494,1721226631713,-210.74085809,0.0001305,2]
[332476495,1721226631722,-293.39215816,0.00013128,2]
[332476496,1721226633986,-2085.26601505,0.00013128,2]
[332476497,1721226633996,-718.8891333,0.00013128,2]
[332476498,1721226634006,-1254.63523304,0.00013128,2]
[332476499,1721226634015,-2202.33424627,0.00013472,2]
[332476500,1721226634026,-250.0,0.00013497,2]
[332476501,1721226634035,-150.99,0.00013543,2]
[332476502,1721226634045,-408.63537234,0.00013699,2]
[332476503,1721226634056,-883.54995,0.00013699,2]
[332476504,1721226634068,-846.47,0.00013699,2]
[332476505,1721226634079,-350.2299999,0.00013699,2]
[332476506,1721226634091,-148.31467776,0.00013699,2]
[332476507,1721226634101,-526.22,0.00013699,2]
[332476508,1721226634111,-1080.27,0.00013699,2]
[332476509,1721226634122,-1146.94567236,0.000139,2]
[332476510,1721226634147,-2048.98850631,0.000139,2]
[332476511,1721226634159,-3408.62018515,0.000139,2]
[332476512,1721226634169,-687.29160875,0.0001393,2]
[332476513,1721226634179,-303.64163013,0.0001393,2]
[332476515,1721226634190,-1198.43,0.0001399,2]
[332476516,1721226634202,-226.4,0.0001399,3]
[332476517,1721226634211,-302.84457597,0.0001399,3]
[332476518,1721226634223,-376.37542403,0.0001399,3]
[332476519,1721226634233,-194.39572584,0.00013997,2]
[332476520,1721226634243,-407.3257182,0.00013999,2]
[332476521,1721226634252,-500.0,0.00013999,2]
[332476522,1721226634262,-208.75528946,0.00013999,2]
[332476524,1721226634272,-500.0,0.00013999,2]
[332476526,1721226634282,-500.0,0.00013999,2]
[332476528,1721226634292,-386.42969354,0.00013999,2]
[332476530,1721226634303,-1106.10866471,0.00013999,5]
[332476532,1721226634313,-1516.10948422,0.00013999,2]
[332476534,1721226634326,-6515.31228095,0.00013999,2]
[332476536,1721226634337,-2796.66417605,0.00013999,2]
[332476538,1721226634348,-10742.0,0.00013999,2]
[332476539,1721226634359,-1489.75692948,0.00013999,2]
[332476546,1721226637544,-265.615,0.00013516,2]
[332476547,1721226637576,-362.04430163,0.00013516,2]
[332476548,1721226637586,-1685.43889451,0.00013999,2]
[332476549,1721226637595,-2629.66393503,0.00013999,2]
[332476550,1721226637693,-464.81408718,0.00013999,2]
[332476551,1721226637705,-649.66,0.00013999,2]
[332476552,1721226637815,-987.45743925,0.00013999,2]
[332476553,1721226637945,-758.11221771,0.00013999,2]
[332476554,1721226637957,-7775.9653312,0.00013999,2]
[332476586,1721226639753,-312.004999,0.00013999,2]
[332476588,1721226639764,-1782.4914332,0.00013999,2]
[332476590,1721226639776,-4289.22974285,0.00013999,2]
[332476592,1721226639786,-27045.11397944,0.00014,2]
[332476594,1721226639797,-46923.97508415,0.00014,2]
[332476601,1721226639870,-2837.74696614,0.00014,2]
[332476603,1721226639882,-6411.89114171,0.00014,2]
[332476606,1721226639900,-308.94361421,0.00014,2]
[332476608,1721226639912,-1619.20385,0.00014,2]
[332476610,1721226639923,-24093.2743351,0.00014,2]
[332476612,1721226639935,-3034.23261669,0.00014,2]
[332476614,1721226639946,-60293.08773721,0.00014,2]
[332476619,1721226639994,-297893.36134628,0.00014,2]
[332476621,1721226640005,-1765.90715,0.00014,2]
[332476623,1721226640022,-158355.74479601,0.00014,2]
[332476625,1721226640033,-3777.50181625,0.00014,2]
[332476629,1721226640068,-933.43431332,0.00014,2]
[332476867,1721226642701,-8035.87160422,0.00014,2]
[332476869,1721226642714,-381.68018953,0.00014,2]
[332476872,1721226642728,-373972.41759651,0.00014,2]
[332476874,1721226642740,-1149.2627743,0.00014,2]
[332476877,1721226642755,-5976.31321052,0.00014,2]
[332476879,1721226642766,-500.0,0.00014,2]
[332476881,1721226642778,-1031.497246,0.00014,2]
[332476892,1721226642872,-5875.0,0.00014,2]
[332476895,1721226642884,-795.92013436,0.00014,2]
[332476907,1721226642992,-1067.81353758,0.00014,2]
[332476909,1721226643004,-455.24917089,0.00014,2]
[332476912,1721226643024,-350.62,0.00014,2]
[332476914,1721226643035,-2448.6,0.00014,2]
[332476916,1721226643046,-292.5,0.00014,2]
[332476918,1721226643057,-344.447979,0.00014,2]
[332477121,1721226645636,-277.17941451,0.000139,2]
[332477122,1721226645652,-2619.87058549,0.00014,2]
[332477123,1721226645664,-3567.11591837,0.00014,2]
[332477126,1721226646877,-70594.29457458,0.00014,2]
[332477127,1721226646892,-21888.96346288,0.00014,2]
[332477128,1721226646905,-828.46681849,0.00014,2]
[332477129,1721226646916,-360.08234564,0.00014,2]
[332477130,1721226646928,-555.0,0.00014,2]
[332477131,1721226646941,-1795.36741921,0.00014,2]
[332477132,1721226646953,-1631.90187909,0.00014,2]
[332477133,1721226646964,-11910.39395879,0.00014,2]
[332477134,1721226646975,-7652.59031677,0.00014,2]
[332477135,1721226646986,-1065.55614246,0.00014,2]
[332477136,1721226646997,-2136.19702433,0.00014,2]
[332477137,1721226647011,-501.36215608,0.00014,2]
[332477138,1721226647022,-403209.91947433,0.00014,2]
[332477139,1721226663613,155.0,0.00011199,2]
[332477140,1721226736382,155.0,0.00011199,2]
[332477141,1721226784904,691.22971014,0.00011199,2]
[332477143,1721226840414,216.44256872,0.00011199,2]
[332477146,1721226859205,15454.85848522,0.00011199,2]
[332477156,1721226892379,1072.38944442,0.00011199,2]
[332477160,1721226910462,1265.84016916,0.00011199,2]
[332477162,1721226925441,783.04921338,0.00011199,2]
[332477164,1721226966775,722.38619925,0.00011199,2]
[332477169,1721227021565,11007.52157911,0.00011199,2]
[332477171,1721227026643,492.55741441,0.00011199,2]
[332477174,1721227037730,201.61085928,0.00011199,2]
[332477175,1721227040022,15448.78812708,0.00011199,2]
[332477177,1721227045655,280.23275342,0.00011199,2]
[332477178,1721227076363,155.65675456,0.00011199,2]
[332477182,1721227094218,155.06514284,0.00011199,2]
[332477186,1721227109545,306.49145131,0.00011199,2]
[332477189,1721227157743,10528.28293915,0.00011199,2]
[332477191,1721227160865,356.67725809,0.00011199,2]
[332477194,1721227184288,156.28633502,0.00011199,2]
[332477196,1721227222961,11003.15774537,0.00011199,2]
[332477199,1721227240247,-158.73,0.00011552,2]
[332477200,1721227240267,-250.0,0.00011981,2]
[332477206,1721227250845,91.27,0.00011199,2]
[332477207,1721227250867,24654.01176521,0.00011199,2]
[332477209,1721227281970,-182.0,0.00012049,2]
[332477211,1721227301107,425.35145516,0.00011199,2]
[332477212,1721227305408,889.96342784,0.00011199,2]
[332477221,1721227309488,11190.49889435,0.00011199,2]
[332477229,1721227313672,469.09,0.00010942,2]
[332477236,1721227369745,484.23503165,0.00011199,2]
[332477240,1721227388402,404.06820458,0.00011199,2]
[332477244,1721227422463,6235.83830916,0.00011199,2]
[332477246,1721227456820,300.55714053,0.00011199,2]
[332477248,1721227468436,4468.07882577,0.00011199,2]
[332477251,1721227472276,155.0,0.00011199,2]
[332477262,1721227496385,258.06682828,0.00011143,2]
[332477271,1721227530471,155.15815067,0.00011199,2]
[332477273,1721227554574,1254.63523304,0.00011199,2]
[332477279,1721227604999,5737.66554856,0.00011199,2]
[332477280,1721227615310,1015.24561731,0.00011199,2]
[332477282,1721227628771,484.03092089,0.00011199,2]
[332477291,1721227665324,4465.97084353,0.00011199,2]
[332477292,1721227681598,544.76386976,0.00011199,2]
[332477314,1721227746658,489.89685021,0.00011199,2]
[332477315,1721227755535,2377.72042133,0.00011199,2]
[332477316,1721227759759,-301.92,0.00011981,2]
[332477317,1721227759785,-920.0,0.00011981,2]
[332477318,1721227759808,-200.0,0.00011981,2]
[332477320,1721227790565,-423.9144272,0.00012273,3]
[332477321,1721227790591,-718.8891333,0.00012302,2]
[332477327,1721227829246,445.63,0.00010842,2]
[332477331,1721227831900,-150.0,0.00012617,2]
[332477332,1721227831910,-250.0,0.0001263,2]
[332477333,1721227831920,-300.0,0.00012632,2]
[332477334,1721227831929,-2680.00047024,0.00012633,2]
[332477335,1721227831961,-2605.7965384,0.00012633,2]
[332477336,1721227832094,-18614.20299136,0.00012633,2]
[332477337,1721227832103,-162.42,0.00012767,2]
[332477338,1721227832113,-3896.69,0.00012852,2]
[332477339,1721227832122,-151.73,0.00012934,2]
[332477340,1721227832131,-151.73,0.00012967,2]
[332477341,1721227832141,-299.99,0.00012967,2]
[332477342,1721227832150,-799.96,0.00012999,2]
[332477344,1721227832160,-151.73,0.00012999,2]
[332477346,1721227832170,-550.0,0.00013,2]
[332477348,1721227832179,-445.63,0.00013105,2]
[332477350,1721227832189,-1014.83818329,0.00013128,2]
[332477351,1721227832199,-2776.75,0.00013156,2]
[332477353,1721227832208,-155.82431433,0.00013472,2]
[332477356,1721227832218,-1402.0919625,0.00013472,2]
[332477359,1721227832226,-920.0,0.00013479,2]
[332477361,1721227832237,-2143.11970079,0.00013516,2]
[332477363,1721227832246,-6758.57608726,0.00013554,2]
[332477365,1721227832257,-261.3858728,0.00013574,2]
[332477367,1721227832267,-250.0,0.00013699,2]
[332477369,1721227832276,-765.95,0.00013699,2]
[332477370,1721227832286,-387.57,0.00013699,2]
[332477371,1721227832295,-400.0,0.000137,5]
[332477372,1721227832304,-2835.70000976,0.00013736,2]
[332477373,1721227832317,-2455.93042428,0.00013736,2]
[332477374,1721227832326,-800.0,0.000138,5]
[332477375,1721227832336,-150.0,0.00013828,2]
[332477376,1721227832346,-2381.90456599,0.00013849,2]
[332477377,1721227832355,-420.0,0.00013858,2]
[332477378,1721227832365,-27527.0,0.0001386,2]
[332477379,1721227832375,-352.08775684,0.00013881,2]
[332477380,1721227832385,-1986.28451758,0.00013899,2]
[332477381,1721227832395,-1200.0,0.000139,5]
[332477382,1721227832406,-618.56244792,0.00013921,2]
[332477383,1721227832416,-332.86887984,0.00013921,2]
[332477384,1721227832426,-151.29699302,0.0001393,2]
[332477385,1721227832436,-196.78351633,0.00013965,2]
[332477386,1721227832446,-452.8,0.0001398,3]
[332477387,1721227832455,-206.46127529,0.00013999,2]
[332477388,1721227832465,-500.0,0.00013999,2]
[332477389,1721227832474,-500.0,0.00013999,2]
[332477390,1721227832484,-383.55476528,0.00013999,2]
[332477391,1721227832493,-308.67273697,0.00013999,2]
[332477392,1721227832502,-224644.67227197,0.00014,2]
[332477393,1721227832514,-9003.48945584,0.00014,2]
[332477394,1721227832526,-3545.23594935,0.00014,2]
[332477395,1721227832542,-441.55013377,0.00014,2]
[332477396,1721227832553,-1256.0721124,0.00014,2]
[332477400,1721227837924,-630.37381688,0.00014,2]
[332477401,1721227837954,-1195.95659563,0.00014,2]
[332477402,1721227838025,-723643.1295144,0.00014,2]
[332477403,1721227838037,-41252.74669472,0.00014,2]
[332477404,1721227838091,-490.1733676,0.00014,2]
[332477405,1721227838102,-136521.81600755,0.00014,2]
[332477406,1721227838113,-117549.67867975,0.00014,2]
[332477407,1721227838282,-30961.17217745,0.00014,2]
[332477409,1721227838294,-522.95955266,0.00014,2]
[332477412,1721227838305,-494.13699303,0.00014,2]
[332477605,1721227840862,-732.46999991,0.00014,2]
[332477607,1721227840874,-879.53341354,0.00014,2]
[332477610,1721227840885,-117093.60000005,0.00014,2]
[332477612,1721227840896,-1056.7785687,0.00014,2]
[332477614,1721227840907,-1273.216,0.00014,2]
[332477616,1721227840918,-1665.14516443,0.00014,2]
[332477618,1721227840930,-3262.62587784,0.00014,2]
[332477844,1721227842967,-1322.86212198,0.00013911,2]
[332477847,1721227842977,-846235.34150441,0.00014,2]
[332477849,1721227842985,-124445.26296032,0.00014011,2]
[332477851,1721227842997,-4456.05239578,0.00014011,2]
[332477853,1721227843008,-4059.4108066,0.00014011,2]
[332477857,1721227843035,-15825.32893389,0.00014011,2]
[332477859,1721227843046,-370.19267968,0.00014011,2]
[332477861,1721227843058,-8840.12655703,0.00014011,2]
[332477863,1721227843067,-9858.6460392,0.00014021,2]
[332477865,1721227843079,-7149.01261877,0.00014131,2]
[332477868,1721227843095,-1104.54947295,0.00014131,2]
[332477884,1721227843249,-363.53467736,0.00014131,2]
[332477886,1721227843261,-735.56057192,0.00014131,2]
[332478106,1721227845844,-3030.633289,0.00013999,2]
[332478107,1721227845854,-2054.54459422,0.00014131,2]
[332478112,1721227845910,-6538.4508,0.00014131,2]
[332478706,1721228085361,35634.55738119,0.00011199,2]
[332478707,1721228095412,24745.28176521,0.00011199,2]
[332478712,1721228141132,15451.9318012,0.00011199,2]
[332478716,1721228329289,5605.08175338,0.00011199,2]
[332478723,1721228483325,2378.18929727,0.00011199,2]
[332478725,1721228550702,1402.58337592,0.00011199,2]
[332478730,1721228595519,8180.28648545,0.00011199,2]
[332478738,1721228713559,9252.14906276,0.00011097,2]
[332478739,1721228730196,295.15942621,0.00011098,2]
[332478742,1721228734914,1358.04412591,0.00011098,2]
[332478743,1721228768043,957.97321156,0.00011098,2]
[332478745,1721228782882,-718.45100364,0.00011197,2]
[332478746,1721228782909,-843.60563306,0.00011199,2]
[332478747,1721228782938,-155.17489344,0.00011199,2]
[332478748,1721228782965,-482.76846986,0.00011369,2]
[332478757,1721228874822,155.14654103,0.00011098,2]
[332478758,1721228905174,472.74,0.00011036,2]
[332478763,1721228912322,-1136.94020699,0.00011199,2]
[332478764,1721228912347,-1401.60054908,0.00011199,2]
[332478765,1721228912370,-1273.02067047,0.00011199,2]
[332478766,1721228912395,-14265.5532574,0.00011199,2]
[332478767,1721228912419,-581.15267094,0.00011199,2]
[332478768,1721228912445,-1341.73264512,0.00011199,2]
[332478770,1721228939258,-1493.96736464,0.00011199,2]
[332478771,1721228939284,-1506.03263536,0.00011199,2]
[332478775,1721228975717,-874.92009457,0.00011199,2]
[332478776,1721228975745,-328.66315645,0.00011199,2]
[332478777,1721228975769,-155.46381169,0.00011199,2]
[332478778,1721228975795,-140.95293729,0.00011199,2]
[332478781,1721228998317,-65.53439687,0.00011199,2]
[332478782,1721228998343,-155.0,0.00011199,2]
[332478783,1721228998367,-155.0,0.00011199,2]
[332478784,1721228998392,-358.8214898,0.00011199,2]
[332478785,1721228998416,-402.33696321,0.00011199,2]
[332478786,1721228998441,-169.55471066,0.00011199,2]
[332478787,1721228998465,-193.75243946,0.00011199,2]
[332478794,1721229019816,531.9273652,0.00024,60]
[332478824,1721229032062,-300.0,0.00011198,2]
[332478826,1721229032071,-114.92029751,0.00011199,2]
[332478828,1721229032081,-155.23759049,0.00011199,2]
[332478830,1721229032090,-492.55741441,0.00011199,2]
[332478832,1721229032099,-1587.5681,0.00012302,2]
[332478834,1721229032110,-305.90573997,0.00012302,2]
[332478836,1721229032120,-482.63407328,0.00012302,2]
[332478837,1721229032131,-352.67618386,0.00012302,2]
[332478838,1721229032141,-420.0,0.00012303,2]
[332478839,1721229032151,-250.0,0.00012314,2]
[332478840,1721229032160,-155.0,0.00012314,2]
[332478841,1721229032169,-250.0,0.00012893,2]
[332478842,1721229032179,-23900.0,0.00012901,2]
[332478843,1721229032188,-220.32,0.00012913,2]
[332478844,1721229032197,-250.0,0.00012933,2]
[332478845,1721229032207,-552.0,0.00013065,2]
[332478846,1721229032216,-292.57856873,0.00013128,2]
[332478847,1721229032225,-1359.14831069,0.00013128,2]
[332478848,1721229032235,-472.74,0.000133,2]
[332478849,1721229032244,-1136.94020699,0.00013452,2]
[332478850,1721229032253,-299.99,0.00013472,2]
[332478851,1721229032262,-3003.51936851,0.00013472,2]
[332478852,1721229032273,-1013.7518324,0.00013516,2]
[332478853,1721229032282,-1056.4639937,0.00013516,2]
[332478854,1721229032292,-484.23503165,0.00013516,2]
[332478855,1721229032301,-587.0,0.00013517,2]
[332478857,1721229032310,-2918.32,0.00013543,2]
[332478859,1721229032320,-1411.25197413,0.00013574,2]
[332478861,1721229032329,-346.8198691,0.00013574,2]
[332478862,1721229032338,-250.0,0.00013699,2]
[332478864,1721229032347,-612.76,0.00013699,2]
[332478866,1721229032356,-296.93,0.00013699,2]
[332478868,1721229032366,-531.23475552,0.00013736,2]
[332478870,1721229032375,-526.09991014,0.00013736,2]
[332478871,1721229032384,-555.81296703,0.00013759,2]
[332478872,1721229032394,-520.8575864,0.00013759,2]
[332478873,1721229032403,-648.63425589,0.00013759,2]
[332478874,1721229032413,-476.37081562,0.00013802,2]
[332478875,1721229032422,-419.00943635,0.00013821,2]
[332478876,1721229032432,-164.06736204,0.00013849,2]
[332478877,1721229032441,-150.0,0.00013888,2]
[332478878,1721229032450,-155.75984281,0.00013889,2]
[332478879,1721229032459,-252.02,0.0001389,3]
[332478880,1721229032469,-5104.7324,0.00013899,2]
[332478881,1721229032478,-679.8807,0.00013899,2]
[332478882,1721229032487,-3103.9289,0.00013899,2]
[332478883,1721229032496,-1771.2664139,0.00013899,2]
[332478884,1721229032505,-588.66104535,0.00013899,2]
[332478885,1721229032515,-1453.51017603,0.00013899,2]
[332478886,1721229032524,-155.0,0.00013899,2]
[332478887,1721229032534,-303.64163011,0.00013899,2]
[332478888,1721229032544,-721.94663678,0.00013899,2]
[332478889,1721229032553,-1108.96635949,0.00013899,2]
[332478890,1721229032563,-263.94650031,0.00013899,2]
[332478891,1721229032573,-155.0,0.00013899,2]
[332478892,1721229032582,-400.0,0.000139,5]
[332478893,1721229032593,-22233.9801057,0.00013989,2]
[332478894,1721229032602,-203.47110547,0.00013989,2]
[332478895,1721229032611,-352.68124914,0.00013989,2]
[332478896,1721229032620,-276.71293214,0.00013989,2]
[332478897,1721229032630,-235.82956703,0.00013989,2]
[332478898,1721229032640,-175.66694853,0.00013989,2]
[332478899,1721229032649,-155.27998251,0.00013989,2]
[332478900,1721229032659,-427.79247,0.0001399,2]
[332478901,1721229032668,-427.79246,0.0001399,2]
[332478902,1721229032677,-427.79246,0.0001399,2]
[332478903,1721229032687,-2470.44223397,0.00013991,2]
[332478904,1721229032697,-660868.74774023,0.00013999,2]
[332478905,1721229032720,-609.37877,0.00013999,2]
[332478920,1721229038573,-652.15802817,0.00013989,2]
[332478921,1721229038583,-6636.51077549,0.00013999,2]
[332478922,1721229038592,-437.69920627,0.00013999,2]
[332478923,1721229038602,-158.69314614,0.00013999,2]
[332478924,1721229038611,-158.69314614,0.00013999,2]
[332478925,1721229038621,-617.04418814,0.00013999,2]
[332478926,1721229038631,-1007.37,0.00014,2]
[332478927,1721229038641,-2470.44223397,0.00014001,2]
[332478928,1721229038650,-1010.3492,0.0001401,2]
[332478929,1721229038660,-617.04418814,0.00014099,2]
[332478930,1721229038669,-159.28807435,0.00014099,2]
[332478931,1721229038680,-155.24764559,0.00014099,2]
[332478932,1721229038689,-155.0,0.00014099,2]
[332478933,1721229038699,-155.70552084,0.00014099,2]
[332478934,1721229038708,-356.67725809,0.00014099,2]
[332478935,1721229038717,-155.0,0.00014099,2]
[332478936,1721229038727,-413.21120921,0.00014099,2]
[332478937,1721229038736,-155.0,0.00014099,2]
[332478938,1721229038745,-427.79246,0.00014131,2]
[332478939,1721229038754,-427.79247,0.00014131,2]
[332478940,1721229038764,-427.79246,0.00014131,2]
[332478941,1721229038774,-121003.7608787,0.00014163,2]
[332478942,1721229038786,-20585.1365985,0.00014163,2]
[332478943,1721229038795,-173.48,0.00014229,2]
[332478944,1721229038805,-153.16217431,0.00014367,2]
[332478945,1721229038814,-612.76,0.00014384,2]
[332478946,1721229038824,-242.77519857,0.00014393,2]
[332478947,1721229038834,-203.59138976,0.00014393,2]
[332478948,1721229038845,-155.0,0.00014393,2]
[332478949,1721229038854,-208.93331,0.00014393,2]
[332478950,1721229038863,-167.42552922,0.00014393,2]